bitfinex-derivatives/quotes_BTCF0:USTF0_20250121
["timestamp","ask_amount","ask_price","bid_price","bid_amount"]
[1737456507813,0.001,103030.0,103020.0,0.66130966]
[1737456508013,0.001,103030.0,103020.0,0.53790966]
[1737456508213,0.001,103030.0,103020.0,0.58888723]
[1737456508807,0.17392819,103040.0,103030.0,0.048585]
[1737456509022,0.05867156,103050.0,103030.0,0.56011316]
[1737456509023,0.048576,103050.0,103030.0,0.56011316]
[1737456509221,0.048576,103050.0,103040.0,0.53218]
[1737456511624,0.049576,103050.0,103040.0,0.53218]
[1737456512218,0.001,103050.0,103040.0,0.59792221]
[1737456514023,0.001,103050.0,103040.0,0.71648221]
[1737456515024,0.11717412,103050.0,103040.0,0.71648221]
[1737456515331,0.20291622,103080.0,103070.0,0.048566]
[1737456515526,0.20291622,103080.0,103070.0,0.47510821]
[1737456515833,0.20291622,103080.0,103070.0,0.59170821]
[1737456516019,0.50643844,103090.0,103080.0,0.048561]
[1737456516222,0.50498285,103090.0,103080.0,0.53620321]
[1737456516718,0.50498285,103090.0,103080.0,0.470461]
[1737456517325,0.50498285,103090.0,103080.0,0.53620321]
[1737456517525,0.50498285,103090.0,103080.0,0.470461]
[1737456518321,0.05954046,103090.0,103080.0,0.470461]
[1737456519025,0.001,103090.0,103080.0,0.53620321]
[1737456519531,0.001,103090.0,103080.0,0.470461]
[1737456521330,0.001,103090.0,103080.0,0.53620321]
[1737456522428,0.001,103090.0,103080.0,0.470461]
[1737456523030,0.001,103090.0,103080.0,0.559821]
[1737456524833,0.049556,103090.0,103080.0,0.559821]
[1737456525426,0.11529821,103090.0,103080.0,0.137921]
[1737456525632,0.29469821,103090.0,103080.0,0.137921]
[1737456525925,0.29469821,103090.0,103080.0,0.048561]
[1737456526636,0.048561,103080.0,103070.0,0.106065]
[1737456526819,0.11430321,103080.0,103070.0,0.106065]
[1737456527534,0.048561,103080.0,103070.0,0.106065]
[1737456527832,0.049561,103080.0,103070.0,0.106065]
[1737456528730,0.049561,103080.0,103070.0,0.466865]
[1737456531733,0.049561,103080.0,103070.0,0.409365]
[1737456531927,0.05975711,103080.0,103070.0,0.409365]
[1737456532434,0.12549932,103080.0,103070.0,0.409365]
[1737456532828,0.12549932,103080.0,103070.0,0.048565]
[1737456533131,0.048566,103070.0,103060.0,0.51525]
[1737456533433,0.11430821,103070.0,103060.0,0.10588]
[1737456534137,0.048566,103070.0,103060.0,0.10588]
[1737456534633,0.04857,103060.0,103050.0,0.53686974]
[1737456534831,0.04857,103060.0,103050.0,0.62038974]
[1737456536033,0.11431221,103060.0,103050.0,0.13354753]
[1737456536231,0.11027,103060.0,103050.0,0.49434753]
[1737456537535,0.11127,103060.0,103050.0,0.49434753]
[1737456541028,0.12125039,103060.0,103050.0,0.49434753]
[1737456541533,0.48205039,103060.0,103040.0,0.54939621]
[1737456541731,0.48205039,103060.0,103050.0,0.048572]
[1737456542231,0.048575,103050.0,103040.0,0.16139797]
[1737456542435,0.47511721,103050.0,103040.0,0.048579]
[1737456542636,0.048575,103050.0,103040.0,0.048579]
[1737456543140,0.048575,103050.0,103040.0,0.155419]
[1737456543842,0.049575,103050.0,103040.0,0.155419]
[1737456544536,0.049575,103050.0,103040.0,0.048579]
[1737456544737,0.001,103050.0,103040.0,0.53392121]
[1737456545436,0.37695502,103060.0,103050.0,0.048575]
[1737456545635,0.37695502,103060.0,103050.0,0.106375]
[1737456545836,0.73775502,103060.0,103050.0,0.106375]
[1737456546139,0.37695502,103060.0,103050.0,0.106375]
[1737456547242,0.37795502,103060.0,103050.0,0.106375]
[1737456547643,0.31940263,103060.0,103050.0,0.53291721]
[1737456547843,0.31940263,103060.0,103050.0,0.59865942]
[1737456548139,0.31940263,103060.0,103050.0,0.53291721]
[1737456548345,0.31940263,103060.0,103050.0,0.58372475]
[1737456549137,0.001,103060.0,103050.0,0.58372475]
[1737456549346,0.001,103060.0,103050.0,0.106375]
[1737456549739,0.04957,103060.0,103050.0,0.106375]
[1737456549940,0.47611221,103060.0,103050.0,0.0578]
[1737456550241,0.47611221,103060.0,103040.0,0.10738]
[1737456550242,0.048575,103050.0,103040.0,0.10738]
[1737456550443,0.47511721,103050.0,103040.0,0.10738]
[1737456550631,0.409375,103050.0,103040.0,0.10738]
[1737456551840,0.409375,103050.0,103040.0,0.10838]
[1737456552843,0.47511721,103050.0,103040.0,0.001]
[1737456553542,0.47511721,103050.0,103040.0,0.04958]
[1737456555048,0.409375,103050.0,103040.0,0.04958]
[1737456556543,0.72777763,103050.0,103040.0,0.04958]
[1737456556752,0.31840263,103050.0,103040.0,0.47612221]
[1737456557249,0.02162414,103050.0,103040.0,0.59221662]
[1737456557748,0.02162414,103050.0,103040.0,0.55821188]
[1737456558143,0.409366,103070.0,103060.0,0.11431221]
[1737456558549,0.409366,103070.0,103060.0,0.04857]
[1737456559644,0.47610821,103070.0,103060.0,0.04857]
[1737456560046,0.410366,103070.0,103060.0,0.04857]
[1737456560349,0.04857,103060.0,103050.0,0.048574]
[1737456560549,0.47511221,103060.0,103050.0,0.048574]
[1737456560743,0.04857,103060.0,103050.0,0.048574]
[1737456561443,0.53731221,103060.0,103040.0,0.27795312]
[1737456561649,0.167975,103050.0,103040.0,0.27795312]
[1737456562148,0.528775,103050.0,103040.0,0.27795312]
[1737456563544,0.528775,103050.0,103040.0,0.001]
[1737456563746,0.59451721,103050.0,103040.0,0.001]
[1737456564251,0.528775,103050.0,103040.0,0.001]
[1737456567456,0.59451721,103050.0,103040.0,0.001]
[1737456567955,0.60418613,103050.0,103040.0,0.001]
[1737456568648,0.53844392,103050.0,103040.0,0.001]
[1737456569560,0.53844392,103050.0,103040.0,0.11532221]
[1737456569760,0.17764392,103050.0,103040.0,0.11532221]
[1737456569949,0.17764392,103050.0,103040.0,0.04958]
[1737456572348,0.53844392,103050.0,103040.0,0.001]
[1737456573351,0.60418613,103050.0,103040.0,0.001]
[1737456574363,0.53844392,103050.0,103040.0,0.001]
[1737456574555,0.53844392,103050.0,103040.0,0.04958]
[1737456574755,0.60418613,103050.0,103040.0,0.001]
[1737456576448,0.53844392,103050.0,103040.0,0.001]
[1737456576954,0.60418613,103050.0,103040.0,0.001]
[1737456577763,0.53844392,103050.0,103040.0,0.001]
[1737456578760,0.53844392,103050.0,103040.0,0.04958]
[1737456583068,0.53844392,103050.0,103040.0,0.001]
[1737456583262,0.60418613,103050.0,103020.0,0.27949542]
[1737456583467,0.048585,103030.0,103020.0,0.27949542]
[1737456584060,0.048585,103030.0,103020.0,0.405282]
[1737456584565,0.048585,103030.0,103020.0,0.409282]
[1737456585862,0.049585,103030.0,103020.0,0.417282]
[1737456586062,0.108585,103030.0,103020.0,0.35153979]
[1737456586265,0.109585,103030.0,103020.0,0.4025963]
[1737456586669,0.109585,103030.0,103020.0,0.417282]
[1737456587070,0.169985,103030.0,103020.0,0.417282]
[1737456587975,0.169985,103030.0,103020.0,0.46833477]
[1737456588277,0.169985,103030.0,103020.0,0.40259256]
[1737456588465,0.169985,103030.0,103020.0,0.46833477]
[1737456588768,0.28633238,103030.0,103020.0,0.41020981]
[1737456591968,0.28633238,103030.0,103020.0,0.47432981]
[1737456593468,0.28633238,103030.0,103020.0,0.4085876]
[1737456594275,0.64713238,103030.0,103020.0,0.4085876]
[1737456594469,0.64713238,103030.0,103020.0,0.30894783]
[1737456594862,0.64713238,103030.0,103020.0,0.90261249]
[1737456595376,0.71287459,103030.0,103020.0,0.90261249]
[1737456595673,0.71287459,103030.0,103020.0,0.95379999]
[1737456596075,0.71287459,103030.0,103020.0,0.64955382]
[1737456596266,0.59652721,103030.0,103020.0,0.1288418]
[1737456597572,0.54054059,103030.0,103020.0,0.0647218]
[1737456597772,0.54054059,103030.0,103020.0,0.0621233]
[1737456598471,0.54054059,103030.0,103020.0,0.0135343]
[1737456600176,0.86085458,103030.0,103020.0,0.18752092]
[1737456601086,0.92659679,103030.0,103020.0,0.18752092]
[1737456601683,0.92659679,103030.0,103020.0,0.18606507]
[1737456604787,2.42659679,103030.0,103020.0,0.18606507]
[1737456605090,0.78099952,103030.0,103020.0,0.01207845]
[1737456606889,0.71525731,103030.0,103020.0,0.06066745]
[1737456607086,0.71525731,103030.0,103020.0,0.12640966]
[1737456607087,0.35445731,103030.0,103020.0,0.12640966]
[1737456607291,0.17671672,103030.0,103020.0,0.54530966]
[1737456607789,0.17671672,103030.0,103020.0,0.6621596]
[1737456608285,0.17671672,103030.0,103020.0,0.59641739]
[1737456608686,0.17671672,103030.0,103020.0,0.6621596]
[1737456610188,0.17671672,103030.0,103020.0,0.7525196]
[1737456610582,0.17671672,103030.0,103020.0,0.68677739]
[1737456611095,0.17671672,103030.0,103020.0,0.84958341]
[1737456611296,0.17571672,103030.0,103020.0,0.88359287]
[1737456611490,0.17571672,103030.0,103020.0,0.89325938]
[1737456611688,0.17571672,103030.0,103020.0,0.85924992]
[1737456611989,7.2e-07,103030.0,103020.0,1.27830134]
[1737456612190,0.20383618,103050.0,103040.0,0.04858]
[1737456612393,0.20383618,103050.0,103040.0,0.88702994]
[1737456612585,0.14532797,103050.0,103040.0,1.00552994]
[1737456613387,0.14532797,103050.0,103040.0,1.00652994]
[1737456613994,0.14532797,103050.0,103040.0,1.00752994]
[1737456615385,0.14532797,103050.0,103040.0,1.17031713]
[1737456615590,0.43679181,103080.0,103070.0,0.048566]
[1737456615790,0.43679181,103080.0,103070.0,0.47510821]
[1737456616389,0.17773976,103090.0,103080.0,0.048561]
[1737456616590,0.17773976,103090.0,103080.0,0.11430321]
[1737456616989,0.1191,103090.0,103080.0,0.54084542]
[1737456617286,0.64394381,103100.0,103090.0,0.048556]
[1737456617489,0.64394381,103100.0,103090.0,0.11429821]
[1737456619291,0.58634381,103100.0,103090.0,0.11429821]
[1737456619600,0.59638979,103100.0,103090.0,0.11429821]
[1737456620297,0.59638979,103100.0,103090.0,0.47509821]
[1737456620496,0.15959798,103100.0,103090.0,0.47509821]
[1737456621601,0.101,103100.0,103090.0,0.47509821]
[1737456622095,0.101,103100.0,103090.0,0.409356]
[1737456622290,0.101,103100.0,103090.0,0.47509821]
[1737456624997,0.149552,103100.0,103090.0,0.549196]
[1737456625288,0.21529421,103100.0,103090.0,0.188396]
[1737456625493,0.57609421,103100.0,103090.0,0.188396]
[1737456627406,0.57609421,103100.0,103090.0,0.13984]
[1737456627699,0.57609421,103100.0,103070.0,0.048564]
[1737456627903,0.048561,103080.0,103070.0,0.048564]
[1737456628102,0.048561,103080.0,103070.0,0.116524]
[1737456628402,0.111961,103080.0,103070.0,0.116524]
[1737456629603,0.17870321,103080.0,103070.0,0.116524]
[1737456629999,0.112961,103080.0,103070.0,0.116524]
[1737456630199,0.112961,103080.0,103070.0,0.18226621]
[1737456630405,0.0644,103080.0,103070.0,0.54306621]
[1737456630704,0.0644,103080.0,103070.0,0.47510621]
[1737456631298,0.001,103080.0,103070.0,0.47510621]
[1737456631806,0.001,103080.0,103070.0,0.53580621]
[1737456632001,0.048558,103090.0,103070.0,0.53580621]
[1737456632305,0.11430021,103090.0,103080.0,0.048561]
[1737456632696,0.048561,103080.0,103070.0,0.048564]
[1737456632895,0.109561,103080.0,103070.0,0.409364]
[1737456633300,0.108561,103080.0,103070.0,0.409364]
[1737456634100,0.109561,103080.0,103070.0,0.409364]
[1737456644114,0.109561,103080.0,103070.0,0.81445575]
[1737456644303,0.109561,103080.0,103070.0,0.45365575]
[1737456644504,0.23590321,103080.0,103070.0,0.45365575]
[1737456644710,0.530961,103080.0,103070.0,0.45365575]
[1737456644907,0.59670321,103080.0,103070.0,0.45365575]
[1737456645112,0.23590321,103080.0,103070.0,0.45365575]
[1737456645614,0.170161,103080.0,103070.0,0.45365575]
[1737456645811,0.109561,103080.0,103070.0,0.51939796]
[1737456647814,0.109561,103080.0,103070.0,0.88019796]
[1737456648013,0.109561,103080.0,103070.0,0.57033886]
[1737456648217,0.19642371,103080.0,103070.0,0.51939796]
[1737456648422,0.19642371,103080.0,103070.0,0.57034367]
[1737456649117,0.19642371,103080.0,103070.0,0.50460146]
[1737456650223,0.19642371,103080.0,103070.0,0.45365575]
[1737456652021,0.22537795,103080.0,103070.0,0.45365575]
[1737456653122,0.58617795,103080.0,103070.0,0.45365575]
[1737456654413,0.64677795,103080.0,103070.0,0.45365575]
[1737456655510,0.71252016,103080.0,103070.0,0.45365575]
[1737456655716,0.79210437,103080.0,103070.0,0.22167359]
[1737456657812,0.43130437,103080.0,103070.0,0.22167359]
[1737456658616,0.79210437,103080.0,103070.0,0.22167359]
[1737456659925,0.92358879,103080.0,103060.0,0.52195986]
[1737456660119,0.47510821,103070.0,103060.0,0.52195986]
[1737456660313,0.47510821,103070.0,103060.0,0.2899777]
[1737456661924,0.47510821,103070.0,103060.0,0.2919777]
[1737456662322,0.484736,103070.0,103060.0,0.2919777]
[1737456665230,0.484736,103070.0,103060.0,0.002]
[1737456671922,0.41899379,103070.0,103060.0,0.0658]
[1737456672126,0.41899379,103070.0,103060.0,0.114371]
[1737456672329,0.61319818,103080.0,103070.0,0.048566]
[1737456672729,0.25239818,103080.0,103070.0,0.048566]
[1737456673230,0.2622044,103080.0,103070.0,0.048566]
[1737456673629,0.22272898,103070.0,103060.0,0.0638]
[1737456673830,0.28847119,103070.0,103060.0,0.112371]
[1737456674529,0.22272898,103070.0,103060.0,0.112371]
[1737456675231,0.22372898,103070.0,103060.0,0.117371]
[1737456677142,0.22372898,103070.0,103060.0,0.119371]
[1737456677326,0.19472287,103070.0,103060.0,0.119371]
[1737456678340,0.19472287,103070.0,103060.0,0.18511321]
[1737456678530,0.19472287,103070.0,103060.0,0.54591321]
[1737456678839,0.14615687,103070.0,103060.0,0.54591321]
[1737456679041,0.14615687,103070.0,103060.0,0.59684856]
[1737456680540,0.14615687,103070.0,103060.0,0.72787446]
[1737456680743,0.17416298,103080.0,103070.0,0.048566]
[1737456680932,0.17416298,103080.0,103070.0,0.58534356]
[1737456681539,0.11612532,103080.0,103070.0,0.68236029]
[1737456682937,0.11612532,103080.0,103070.0,0.68436029]
[1737456684934,0.11612532,103080.0,103070.0,0.79508029]
[1737456685635,0.20313535,103090.0,103080.0,0.048561]
[1737456685832,0.20313535,103090.0,103080.0,0.59610321]
[1737456686643,0.15000824,103100.0,103080.0,0.59610321]
[1737456686942,0.15000824,103100.0,103090.0,0.409356]
[1737456687436,0.10145524,103100.0,103090.0,0.409356]
[1737456687648,0.1,103100.0,103090.0,0.47509821]
[1737456687845,0.1,103100.0,103090.0,0.53709821]
[1737456688842,0.41079407,103130.0,103120.0,0.048542]
[1737456689239,0.47653628,103130.0,103120.0,0.048542]
[1737456689546,0.67944209,103130.0,103120.0,0.048542]
[1737456690039,0.68946015,103130.0,103120.0,0.048542]
[1737456690245,0.69046015,103130.0,103120.0,0.048542]
[1737456691531,0.69046015,103130.0,103100.0,0.42876]
[1737456691748,0.170146,103120.0,103110.0,0.048546]
[1737456693443,0.171146,103120.0,103110.0,0.048546]
[1737456693645,0.23688821,103120.0,103110.0,0.048546]
[1737456695154,0.171146,103120.0,103110.0,0.048546]
[1737456695847,0.23688821,103120.0,103110.0,0.048546]
[1737456696442,0.171146,103120.0,103110.0,0.048546]
[1737456696843,0.1226,103120.0,103110.0,0.409346]
[1737456697048,0.1226,103120.0,103110.0,0.47508821]
[1737456697343,0.001,103120.0,103110.0,0.47508821]
[1737456697549,0.001,103120.0,103110.0,0.470146]
[1737456698343,0.001,103120.0,103110.0,0.53588821]
[1737456698738,0.11668811,103120.0,103110.0,0.53588821]
[1737456700748,0.11668811,103120.0,103110.0,0.470146]
[1737456701150,0.11668811,103120.0,103110.0,0.409346]
[1737456702354,0.08784235,103120.0,103110.0,0.409346]
[1737456702954,0.08784235,103120.0,103110.0,0.47508821]
[1737456704151,0.08784235,103120.0,103110.0,0.69826731]
[1737456704346,0.08784235,103120.0,103110.0,0.76400952]
[1737456705555,0.03820769,103120.0,103110.0,1.11469539]
[1737456705959,0.03820769,103120.0,103110.0,1.12986387]
[1737456706257,0.03820769,103120.0,103110.0,1.26966387]
[1737456706445,0.03820769,103120.0,103110.0,1.34611352]
[1737456706755,0.03820769,103120.0,103110.0,1.26966387]
[1737456707655,0.1538958,103130.0,103110.0,1.26966387]
[1737456707955,0.1538958,103130.0,103120.0,0.53348421]
[1737456708159,0.1538958,103130.0,103120.0,0.54865269]
[1737456708654,0.1538958,103130.0,103120.0,0.77275269]
[1737456708850,8e-07,103130.0,103120.0,0.77275269]
[1737456709059,8e-07,103130.0,103120.0,1.2588149]
[1737456709247,0.17353217,103150.0,103120.0,1.18236525]
[1737456709449,0.17353217,103150.0,103140.0,0.85308442]
[1737456709647,0.17353217,103150.0,103140.0,0.9167859]
[1737456709955,1.7e-07,103150.0,103140.0,1.327543]
[1737456710168,1.7e-07,103150.0,103140.0,1.42451269]
[1737456710945,0.20286598,103160.0,103150.0,0.048528]
[1737456711148,0.20286598,103160.0,103150.0,0.60029579]
[1737456711351,0.17475816,103160.0,103150.0,0.60029579]
[1737456711549,0.17475816,103160.0,103150.0,0.73970931]
[1737456711756,0.10198072,103160.0,103150.0,0.73970931]
[1737456712054,0.10198072,103160.0,103150.0,0.75255728]
[1737456712254,0.23189236,103170.0,103160.0,0.048523]
[1737456712454,0.23189236,103170.0,103160.0,0.67082615]
[1737456712758,0.23189236,103170.0,103160.0,0.60508394]
[1737456713059,0.23189236,103170.0,103160.0,0.70202543]
[1737456713560,0.1448454,103170.0,103160.0,0.70202543]
[1737456714551,0.1448454,103170.0,103160.0,0.65136833]
[1737456715255,0.1448454,103170.0,103160.0,0.70956833]
[1737456716756,0.1448454,103170.0,103160.0,0.71954139]
[1737456717862,0.16826438,103190.0,103160.0,0.71954139]
[1737456718051,0.16826438,103190.0,103180.0,0.048514]
[1737456718247,0.16826438,103190.0,103180.0,0.06367563]
[1737456718451,0.36225438,103190.0,103180.0,0.06367563]
[1737456718652,0.1794,103200.0,103190.0,0.048509]
[1737456718848,0.24,103200.0,103190.0,0.49021284]
[1737456719263,0.24,103200.0,103190.0,0.42447063]
[1737456720064,0.24,103200.0,103190.0,0.49021284]
[1737456720462,0.3597,144670.0,103190.0,0.49021284]
[1737456720661,0.44246312,103320.0,103270.0,0.3608]
[1737456720865,0.44246312,103320.0,103310.0,0.3808]
[1737456720866,0.49091312,103320.0,103310.0,0.3808]
[1737456721061,0.49091312,103320.0,103310.0,0.02]
[1737456721361,1.548453,103310.0,103300.0,0.3608]
[1737456721552,1.61419521,103310.0,103280.0,0.409266]
[1737456721852,0.04846,103300.0,103280.0,0.3608]
[1737456722052,0.11420221,103300.0,103280.0,0.3608]
[1737456722455,0.409262,103290.0,103270.0,0.409269]
[1737456722858,0.048462,103290.0,103270.0,0.409269]
[1737456723064,0.38643379,103320.0,103280.0,0.13148442]
[1737456723257,0.37672091,103320.0,103310.0,0.83579521]
[1737456723564,0.37672091,103320.0,103310.0,0.770053]
[1737456723974,0.37672091,103320.0,103310.0,0.7216]
[1737456724964,0.37672091,103320.0,103310.0,0.83579521]
[1737456725965,0.37672091,103320.0,103310.0,0.770053]
[1737456726170,0.37672091,103320.0,103310.0,0.83579521]
[1737456726757,0.37672091,103320.0,103310.0,0.770053]
[1737456726958,0.78596891,103320.0,103300.0,0.048458]
[1737456727161,0.42516891,103320.0,103300.0,0.16460021]
[1737456727558,0.78596891,103320.0,103300.0,0.16460021]
[1737456727961,0.409248,103320.0,103310.0,0.75037408]
[1737456729062,0.409248,103320.0,103310.0,0.00037408]
[1737456729267,0.409248,103320.0,103310.0,0.06611629]
[1737456729470,0.048448,103320.0,103310.0,0.06611629]
[1737456729663,0.409248,103320.0,103310.0,0.06611629]
[1737456729964,0.409248,103320.0,103310.0,0.00037408]
[1737456730355,0.048448,103320.0,103310.0,0.00037408]
[1737456730966,0.409248,103320.0,103310.0,0.00037408]
[1737456731962,0.47499021,103320.0,103310.0,0.00037408]
[1737456732367,0.3608,103360.0,103310.0,0.4926585]
[1737456732566,0.048426,103370.0,103350.0,0.47497521]
[1737456732767,0.409226,103370.0,103360.0,0.06574221]
[1737456732968,0.409226,103370.0,103350.0,0.42654221]
[1737456733169,0.00972285,103370.0,103360.0,0.11417221]
[1737456733472,0.04843,103360.0,103350.0,0.45759136]
[1737456733769,0.409225,103370.0,103350.0,0.42654221]
[1737456734065,0.409225,103370.0,103350.0,0.3608]
[1737456734471,0.3608,103360.0,103340.0,0.09784]
[1737456734662,0.11417621,103350.0,103320.0,0.048448]
[1737456734857,0.770045,103330.0,103310.0,0.048451]
[1737456735171,0.3608,103320.0,103300.0,0.06574221]
[1737456735375,0.28010697,103320.0,103310.0,0.048452]
[1737456735667,0.32855697,103320.0,103300.0,0.048457]
[1737456735976,0.3608,103310.0,103300.0,0.048457]
[1737456736175,0.00989738,103350.0,103300.0,0.85724]
[1737456736478,0.048433,103360.0,103340.0,0.409238]
[1737456736679,0.048433,103360.0,103350.0,0.3608]
[1737456739164,0.15776265,103370.0,103350.0,0.3608]
[1737456739568,0.048431,103360.0,103350.0,0.3608]
[1737456739775,0.048431,103360.0,103350.0,0.7216]
[1737456740763,0.06084347,103370.0,103350.0,0.7216]
[1737456740977,0.048425,103370.0,103360.0,0.3608]
[1737456741368,0.112525,103370.0,103360.0,0.3608]
[1737456742473,0.1228281,103410.0,103370.0,0.3608]
[1737456742677,0.048411,103400.0,103390.0,0.3608]
[1737456742876,0.048411,103400.0,103390.0,0.7216]
[1737456743377,0.1712391,103400.0,103390.0,0.7216]
[1737456743574,0.1228281,103400.0,103380.0,0.3608]
[1737456743879,0.1712451,103390.0,103380.0,0.3608]
[1737456744469,0.1712451,103390.0,103350.0,0.3608]
[1737456744664,0.409231,103360.0,103340.0,0.46801658]
[1737456745464,0.048431,103360.0,103340.0,0.46801658]
[1737456745668,1.5,103360.0,103350.0,0.048434]
[1737456745869,0.409225,103370.0,103350.0,0.048434]
[1737456746271,0.409221,103380.0,103360.0,0.04843]
[1737456746971,0.048433,103360.0,103340.0,0.69347221]
[1737456747180,0.409233,103360.0,103340.0,0.69347221]
[1737456747478,0.048434,103350.0,103340.0,0.69347221]
[1737456748680,0.048434,103350.0,103340.0,0.69547221]
[1737456749576,0.048434,103350.0,103340.0,0.06078058]
[1737456749880,0.048434,103350.0,103340.0,0.00208058]
[1737456750085,0.409234,103350.0,103340.0,0.00208058]
[1737456750775,0.5320621,103350.0,103340.0,0.00208058]
[1737456751375,0.048448,103320.0,103310.0,0.18295165]
[1737456752374,0.04852858,103320.0,103310.0,0.30577975]
[1737456752573,8.058e-05,103320.0,103310.0,0.71503275]
[1737456752786,0.048444,103330.0,103320.0,0.048448]
[1737456753084,0.40924,103340.0,103320.0,0.5320761]
[1737456753383,0.04844,103340.0,103320.0,0.5320761]
[1737456753586,0.04844,103340.0,103330.0,0.3608]
[1737456753787,0.04844,103340.0,103330.0,0.1228281]
[1737456754485,0.04844,103340.0,103320.0,0.5380761]
[1737456754687,0.04944,103340.0,103330.0,0.1228281]
[1737456754887,0.05044,103340.0,103330.0,0.17758991]
[1737456755485,0.3608,103360.0,103330.0,0.53838991]
[1737456755783,0.048439,103350.0,103330.0,0.41556181]
[1737456755990,0.048439,103340.0,103330.0,0.41556181]
[1737456756185,0.048439,103340.0,103330.0,0.77959062]
[1737456756487,0.3608,103350.0,103330.0,0.85469901]
[1737456756785,0.048439,103340.0,103330.0,0.85469901]
[1737456757488,0.048439,103340.0,103330.0,0.85169901]
[1737456757689,0.048439,103340.0,103330.0,0.84969901]
[1737456757884,0.409239,103340.0,103330.0,0.84969901]
[1737456758083,0.469839,103340.0,103330.0,0.8029372]
[1737456759383,0.109039,103340.0,103330.0,0.8049372]
[1737456759885,0.469839,103340.0,103330.0,0.8049372]
[1737456761692,0.469839,103340.0,103330.0,0.71408977]
[1737456762593,0.410239,103340.0,103330.0,0.71408977]
[1737456762784,0.049439,103340.0,103330.0,1.12333377]
[1737456762981,0.049439,103340.0,103330.0,1.23867592]
[1737456763487,0.049439,103340.0,103330.0,1.12474097]
[1737456763683,0.049439,103340.0,103330.0,0.76394097]
[1737456764190,0.410239,103340.0,103330.0,0.71408977]
[1737456764685,0.049439,103340.0,103330.0,0.71408977]
[1737456765186,0.049439,103340.0,103330.0,0.76395535]
[1737456765682,0.049439,103340.0,103330.0,0.42089439]
[1737456767995,0.049439,103340.0,103330.0,0.83934453]
[1737456768384,0.049439,103340.0,103330.0,1.24858853]
[1737456769394,0.048434,103350.0,103330.0,0.88778853]
[1737456769594,0.048439,103340.0,103330.0,0.88778853]
[1737456769985,0.048439,103340.0,103330.0,1.24858853]
[1737456770184,0.048439,103340.0,103330.0,0.88778853]
[1737456770486,0.048439,103340.0,103330.0,1.59207444]
[1737456771089,0.47538852,103360.0,103330.0,1.66580612]
[1737456771090,0.42695852,103360.0,103330.0,1.66580612]
[1737456771296,0.048436,103350.0,103340.0,0.409238]
[1737456771595,0.048436,103350.0,103340.0,0.58060358]
[1737456772781,0.048436,103350.0,103340.0,0.530738]
[1737456773393,0.048436,103350.0,103340.0,0.81679992]
[1737456773897,0.048436,103350.0,103340.0,0.81879992]
[1737456775393,0.048436,103350.0,103340.0,0.69729992]
[1737456776501,0.048436,103350.0,103340.0,0.92643341]
[1737456781094,0.048436,103350.0,103340.0,0.411238]
[1737456782588,0.048436,103350.0,103340.0,0.002]
[1737456782787,0.5320277,103350.0,103340.0,0.002]
[1737456783798,0.47472271,103350.0,103340.0,0.002]
[1737456784301,0.53392271,103350.0,103340.0,0.002]
[1737456784903,0.53392271,103350.0,103330.0,0.22913349]
[1737456785093,0.53732571,103340.0,103330.0,0.17189353]
[1737456785290,0.53732571,103340.0,103320.0,0.22913349]
[1737456785494,0.53563071,103330.0,103320.0,0.22913349]
[1737456786396,0.53563071,103330.0,103320.0,0.23813349]
[1737456786597,0.048448,103320.0,103310.0,0.25145241]
[1737456786805,0.47473471,103320.0,103310.0,0.25145241]
[1737456789291,0.048453,103310.0,103300.0,0.1]
[1737456789492,0.47473971,103310.0,103300.0,0.1]
[1737456789711,0.048453,103310.0,103300.0,0.1]
[1737456790905,0.050453,103310.0,103300.0,0.11514648]
[1737456792004,0.11593971,103310.0,103300.0,0.11514648]
[1737456792595,0.47673971,103310.0,103300.0,0.11514648]
[1737456792799,0.47673971,103310.0,103300.0,0.1]
[1737456793905,0.53863971,103310.0,103300.0,0.1]
[1737456794608,0.65436874,103310.0,103300.0,0.1]
[1737456795407,0.65436874,103310.0,103280.0,0.0606]
[1737456795602,0.048467,103280.0,103270.0,0.12386998]
[1737456796110,0.048467,103280.0,103270.0,0.21690998]
[1737456796703,0.47475371,103280.0,103270.0,0.17066048]
[1737456796897,0.47575371,103280.0,103270.0,0.17120815]
[1737456797105,0.47575371,103280.0,103270.0,0.11030815]
[1737456797305,0.53895371,103280.0,103270.0,0.11730815]
[1737456797699,0.53895371,103280.0,103270.0,0.10215765]
[1737456798410,0.53895371,103280.0,103270.0,0.00911765]
[1737456799008,0.53795371,103280.0,103270.0,0.00811765]
[1737456799217,0.53695371,103280.0,103270.0,0.00111765]
[1737456801609,0.54659811,103280.0,103270.0,0.00111765]
[1737456804207,0.48439811,103280.0,103270.0,0.00111765]
[1737456804400,0.0581114,103280.0,103270.0,0.00111765]
[1737456804604,0.0581114,103280.0,103270.0,0.06321765]
[1737456805322,0.12359811,103280.0,103270.0,0.06321765]
[1737456805611,0.0581114,103280.0,103270.0,0.06321765]
[1737456807808,0.12359811,103280.0,103270.0,0.06321765]
[1737456809218,0.48439811,103280.0,103270.0,0.06321765]
[1737456810016,0.48439811,103280.0,103270.0,0.00111765]
[1737456820424,0.60027382,103280.0,103270.0,0.00111765]
[1737456820721,0.048477,103260.0,103250.0,0.1863]
[1737456821018,0.47476371,103260.0,103250.0,0.1863]
[1737456821807,0.47576371,103260.0,103250.0,0.1933]
[1737456822220,0.11496371,103260.0,103250.0,0.1933]
[1737456822430,0.54125042,103260.0,103250.0,0.0704]
[1737456822621,0.54225042,103260.0,103250.0,0.008]
[1737456823319,0.048482,103250.0,103230.0,0.62011181]
[1737456823621,0.42628671,103240.0,103230.0,0.55841181]
[1737456823818,0.89567271,103240.0,103230.0,0.49315882]
[1737456824012,0.89567271,103240.0,103230.0,0.43205882]
[1737456824214,0.95587271,103240.0,103230.0,0.43205882]
[1737456824723,0.95587271,103240.0,103230.0,0.14536]
[1737456824914,1.02135942,103240.0,103230.0,0.13784013]
[1737456825121,1.02135942,103240.0,103230.0,0.12502464]
[1737456825420,2.52135942,103240.0,103230.0,0.12502464]
[1737456825625,2.45587271,103240.0,103230.0,0.12502464]
[1737456826011,2.45587271,103240.0,103220.0,0.28669882]
[1737456826012,0.048491,103230.0,103220.0,0.28669882]
[1737456826720,0.048491,103230.0,103220.0,0.35218553]
[1737456827110,0.3608,103240.0,103220.0,0.71298553]
[1737456827111,0.409288,103240.0,103220.0,0.71298553]
[1737456827321,0.409288,103240.0,103230.0,0.048491]